fUSD/lending_fUSD_20250828
["ID","MTS","AMOUNT","RATE_DAILY","PERIOD"]
[381791816,1756350632613,-642.91,0.00017414,2]
[381791817,1756350632626,-539.03149321,0.00017459,2]
[381791818,1756350632635,-1200.0,0.000176,6]
[381791819,1756350632645,-881.46536882,0.00017642,2]
[381791820,1756350632654,-926.0,0.00017666,2]
[381791821,1756350632664,-1298.0,0.00017666,2]
[381791822,1756350632674,-599.0,0.00017666,2]
[381791823,1756350632683,-595.1160584,0.00017666,2]
[381791824,1756350632699,-979.8839416,0.00017666,2]
[381791825,1756350632708,-566.0,0.00017666,2]
[381791826,1756350632717,-1177.674,0.00017666,2]
[381791827,1756350632726,-2573.53094955,0.00017685,2]
[381791828,1756350632737,-803.51,0.00017685,2]
[381791829,1756350632748,-778.95905045,0.00017685,2]
[381791830,1756350632757,-513.962,0.00017685,2]
[381791831,1756350632766,-475.148,0.00017685,2]
[381791832,1756350632775,-1577.15010886,0.000177,6]
[381791833,1756350632786,-250.0,0.000177,6]
[381791834,1756350632797,-672.84989114,0.000177,6]
[381791835,1756350632806,-327.15010886,0.00017709,2]
[381791838,1756350638140,-4491.35743494,0.00017709,2]
[381791839,1756350638149,-200.0,0.00017738,2]
[381791840,1756350638159,-151.0,0.00017738,2]
[381791841,1756350638168,-151.0,0.00017738,2]
[381791842,1756350638177,-151.0,0.00017738,2]
[381791843,1756350638187,-151.0,0.00017738,2]
[381791844,1756350638196,-151.0,0.00017738,2]
[381791845,1756350638205,-151.0,0.00017738,2]
[381791846,1756350638214,-151.0,0.00017738,2]
[381791847,1756350638225,-151.0,0.00017738,2]
[381791848,1756350638234,-151.0,0.00017738,2]
[381791849,1756350638243,-151.0,0.00017738,2]
[381791850,1756350638252,-151.0,0.00017738,2]
[381791851,1756350638261,-151.0,0.00017738,2]
[381791852,1756350638270,-500.0,0.00017738,2]
[381791853,1756350638280,-500.0,0.00017738,2]
[381791854,1756350638290,-500.0,0.00017738,2]
[381791855,1756350638301,-500.0,0.00017738,2]
[381791856,1756350638310,-500.0,0.00017738,2]
[381791857,1756350638319,-500.0,0.00017738,2]
[381791858,1756350638328,-500.0,0.00017738,2]
[381791859,1756350638338,-151.0,0.00017738,2]
[381791860,1756350638347,-500.0,0.00017738,2]
[381791861,1756350638357,-500.0,0.00017738,2]
[381791862,1756350638367,-500.0,0.00017738,2]
[381791865,1756350638376,-500.0,0.00017738,2]
[381791867,1756350638385,-630.99952036,0.00017738,2]
[381791869,1756350638394,-13698.64596746,0.00017739,2]
[381791871,1756350638404,-400.0,0.00017749,2]
[381791873,1756350638413,-400.0,0.00017749,2]
[381791875,1756350638422,-400.0,0.00017749,2]
[381791877,1756350638431,-400.0,0.00017749,2]
[381791878,1756350638441,-400.0,0.00017749,2]
[381791880,1756350638452,-400.0,0.00017749,2]
[381791882,1756350638461,-400.0,0.00017749,2]
[381791884,1756350638470,-400.0,0.00017749,2]
[381791886,1756350638481,-400.0,0.00017749,2]
[381791888,1756350638491,-400.0,0.00017749,2]
[381791891,1756350638500,-400.0,0.00017749,2]
[381791893,1756350638509,-400.0,0.00017749,2]
[381791895,1756350638519,-400.0,0.00017749,2]
[381791897,1756350638528,-407.29953741,0.00017749,2]
[381791899,1756350638538,-400.0,0.00017749,2]
[381791901,1756350638547,-400.0,0.00017749,2]
[381791903,1756350638557,-400.0,0.00017749,2]
[381791905,1756350638566,-400.0,0.00017749,2]
[381791907,1756350638575,-208.69753983,0.00017749,2]
[381791909,1756350638592,-191.30246017,0.00017749,2]
[381791911,1756350638602,-204.07790209,0.00017749,2]
[381791913,1756350638610,-400.0,0.00017749,2]
[381791915,1756350638620,-400.0,0.00017749,2]
[381791917,1756350638630,-400.0,0.00017749,2]
[381791919,1756350638639,-400.0,0.00017749,2]
[381791921,1756350638648,-400.0,0.00017749,2]
[381791923,1756350638657,-689.0,0.00017749,2]
[381791925,1756350638667,-500.0,0.00017749,2]
[381791927,1756350638676,-400.0,0.00017749,2]
[381791929,1756350638686,-153.61610203,0.00017749,2]
[381791931,1756350638695,-400.0,0.00017749,2]
[381791933,1756350638704,-400.0,0.00017749,2]
[381791935,1756350638712,-400.0,0.00017749,2]
[381791937,1756350638722,-1387.52,0.00017749,2]
[381791939,1756350638732,-411.11387055,0.00017752,2]
[381791942,1756350638753,-4131.49412945,0.00017752,2]
[381791944,1756350638762,-168.0,0.00017771,2]
[381791946,1756350638771,-257.876,0.00017776,2]
[381791948,1756350638780,-234.73,0.00017799,2]
[381791950,1756350638789,-405.32788039,0.00017799,2]
[381792077,1756350640186,-29.84475557,0.00017799,2]
[381792081,1756350640216,-134.13736404,0.00017799,2]
[381792083,1756350640225,-193.84403,0.00017799,2]
[381792086,1756350640235,-322.229175,0.00017799,2]
[381792088,1756350640245,-400.0,0.00017799,2]
[381792090,1756350640254,-1458.41,0.00017799,2]
[381792092,1756350640264,-400.0,0.00017799,2]
[381792094,1756350640273,-435.73,0.00017799,2]
[381792096,1756350640285,-400.0,0.00017799,2]
[381792098,1756350640298,-400.0,0.00017799,2]
[381792100,1756350640308,-553.98,0.00017799,2]
[381792102,1756350640317,-400.0,0.00017799,2]
[381792104,1756350640326,-400.0,0.00017799,2]
[381792106,1756350640335,-171.739953,0.00017799,2]
[381792108,1756350640345,-400.0,0.00017799,2]
[381792110,1756350640354,-819.52,0.00017799,2]
[381792112,1756350640364,-400.0,0.00017799,2]
[381792114,1756350640375,-400.0,0.00017799,2]
[381792116,1756350640385,-400.0,0.00017799,2]
[381792118,1756350640396,-400.0,0.00017799,2]
[381792120,1756350640405,-400.0,0.00017799,2]
[381792122,1756350640414,-400.0,0.00017799,2]
[381792124,1756350640423,-400.0,0.00017799,2]
[381792126,1756350640432,-400.0,0.00017799,2]
[381792128,1756350640442,-400.0,0.00017799,2]
[381792130,1756350640451,-400.0,0.00017799,2]
[381792132,1756350640461,-400.0,0.00017799,2]
[381792134,1756350640471,-400.0,0.00017799,2]
[381792136,1756350640480,-510.43,0.00017799,2]
[381792138,1756350640489,-400.0,0.00017799,2]
[381792140,1756350640498,-400.0,0.00017799,2]
[381792142,1756350640507,-177.80528459,0.00017799,2]
[381792144,1756350640517,-577.27,0.00017799,2]
[381792146,1756350640526,-400.0,0.00017799,2]
[381792148,1756350640536,-400.0,0.00017799,2]
[381792150,1756350640545,-400.0,0.00017799,2]
[381792151,1756350640554,-400.0,0.00017799,2]
[381792153,1756350640563,-400.0,0.00017799,2]
[381792155,1756350640573,-400.0,0.00017799,2]
[381792157,1756350640582,-400.0,0.00017799,2]
[381792159,1756350640591,-619.77,0.00017799,2]
[381792161,1756350640601,-400.0,0.00017799,2]
[381792163,1756350640610,-400.0,0.00017799,2]
[381792165,1756350640619,-400.0,0.00017799,2]
[381792167,1756350640628,-400.0,0.00017799,2]
[381792169,1756350640637,-400.0,0.00017799,2]
[381792171,1756350640646,-400.0,0.00017799,2]
[381792173,1756350640655,-400.0,0.00017799,2]
[381792175,1756350640664,-400.0,0.00017799,2]
[381792177,1756350640673,-400.0,0.00017799,2]
[381792179,1756350640682,-400.0,0.00017799,2]
[381792181,1756350640691,-400.0,0.00017799,2]
[381792183,1756350640702,-451.48647651,0.00017799,2]
[381792185,1756350640711,-400.0,0.00017799,2]
[381792187,1756350640720,-400.0,0.00017799,2]
[381792189,1756350640729,-400.0,0.00017799,2]
[381792191,1756350640739,-400.0,0.00017799,2]
[381792193,1756350640748,-400.0,0.00017799,2]
[381792195,1756350640757,-583.84,0.00017799,2]
[381792197,1756350640766,-457.94,0.00017799,2]
[381792199,1756350640776,-400.0,0.00017799,2]
[381792201,1756350640785,-400.0,0.00017799,2]
[381792203,1756350640794,-400.0,0.00017799,2]
[381792205,1756350640803,-400.0,0.00017799,2]
[381792207,1756350640812,-400.0,0.00017799,2]
[381792209,1756350640821,-400.0,0.00017799,2]
[381792211,1756350640831,-400.0,0.00017799,2]
[381792213,1756350640840,-400.0,0.00017799,2]
[381792215,1756350640850,-400.0,0.00017799,2]
[381792217,1756350640859,-400.0,0.00017799,2]
[381792219,1756350640868,-1037.11,0.00017799,2]
[381792221,1756350640879,-400.0,0.00017799,2]
[381792223,1756350640888,-400.0,0.00017799,2]
[381792225,1756350640898,-5080.99,0.00017799,2]
[381792227,1756350640907,-400.0,0.00017799,2]
[381792229,1756350640917,-2480.25,0.00017799,2]
[381792231,1756350640927,-2000.0,0.000178,2]
[381792233,1756350640936,-3800.0,0.000178,6]
[381792235,1756350640945,-400.0,0.00017809,2]
[381792237,1756350640956,-400.0,0.00017809,2]
[381792239,1756350640966,-400.0,0.00017809,2]
[381792241,1756350640976,-400.0,0.00017809,2]
[381792243,1756350640986,-400.0,0.00017809,2]
[381792245,1756350640996,-191.24,0.00017809,2]
[381792247,1756350641006,-365.08206649,0.00017809,2]
[381792249,1756350641015,-400.0,0.00017809,2]
[381792251,1756350641024,-400.0,0.00017809,2]
[381792253,1756350641033,-212.68,0.00017809,2]
[381792255,1756350641042,-400.0,0.00017809,2]
[381792257,1756350641054,-400.0,0.00017809,2]
[381792259,1756350641064,-360.44799,0.00017809,2]
[381792261,1756350641074,-400.0,0.00017809,2]
[381792263,1756350641083,-400.0,0.00017809,2]
[381792265,1756350641092,-400.0,0.00017809,2]
[381792267,1756350641102,-400.0,0.00017809,2]
[381792269,1756350641111,-297.27,0.00017809,2]
[381792271,1756350641122,-400.0,0.00017809,2]
[381792273,1756350641131,-400.0,0.00017809,2]
[381792275,1756350641141,-400.0,0.00017809,2]
[381792277,1756350641150,-400.0,0.00017809,2]
[381792279,1756350641160,-400.0,0.00017809,2]
[381792281,1756350641169,-400.0,0.00017809,2]
[381792283,1756350641181,-400.0,0.00017809,2]
[381792285,1756350641190,-452.94415998,0.00017809,2]
[381792287,1756350641200,-400.0,0.00017809,2]
[381792289,1756350641209,-452.92980954,0.00017809,2]
[381792291,1756350641218,-351.98375202,0.00017809,2]
[381792293,1756350641227,-235.88,0.00017809,2]
[381792295,1756350641237,-400.0,0.00017809,2]
[381792297,1756350641246,-400.0,0.00017809,2]
[381792299,1756350641255,-400.0,0.00017809,2]
[381792301,1756350641265,-400.0,0.00017809,2]
[381792303,1756350641274,-400.0,0.00017809,2]
[381792306,1756350641284,-466.23,0.00017809,2]
[381792307,1756350641296,-400.0,0.00017809,2]
[381792309,1756350641306,-400.0,0.00017809,2]
[381792311,1756350641316,-404.95662602,0.00017809,2]
[381792313,1756350641325,-400.0,0.00017809,2]
[381792315,1756350641335,-400.0,0.00017809,2]
[381792318,1756350641345,-334.61,0.00017809,2]
[381792320,1756350641356,-400.0,0.00017809,2]
[381792322,1756350641365,-400.0,0.00017809,2]
[381792323,1756350641375,-300.0,0.00017809,2]
[381792326,1756350641386,-453.05626008,0.00017809,2]
[381792328,1756350641396,-400.0,0.00017809,2]
[381792330,1756350641405,-400.0,0.00017809,2]
[381792332,1756350641416,-521.91432181,0.00017809,2]
[381792334,1756350641425,-400.0,0.00017809,2]
[381792336,1756350641435,-400.0,0.00017809,2]
[381792338,1756350641444,-400.0,0.00017809,2]
[381792340,1756350641453,-400.0,0.00017809,2]
[381792342,1756350641463,-400.0,0.00017809,2]
[381792344,1756350641473,-323.69179965,0.00017809,2]
[381792346,1756350641482,-400.0,0.00017809,2]
[381792348,1756350641490,-400.0,0.00017809,2]
[381792350,1756350641499,-471.8796583,0.00017809,2]
[381792352,1756350641509,-400.0,0.00017809,2]
[381792354,1756350641519,-503.47,0.00017809,2]
[381792356,1756350641528,-400.0,0.00017809,2]
[381792358,1756350641538,-400.0,0.00017809,2]
[381792360,1756350641548,-400.0,0.00017809,2]
[381792362,1756350641558,-400.0,0.00017809,2]
[381792364,1756350641567,-400.0,0.00017809,2]
[381792366,1756350641576,-400.0,0.00017809,2]
[381792368,1756350641585,-400.0,0.00017809,2]
[381792370,1756350641594,-400.0,0.00017809,2]
[381792372,1756350641604,-400.0,0.00017809,2]
[381792374,1756350641612,-400.0,0.00017809,2]
[381792376,1756350641622,-318.34959856,0.00017809,2]
[381792378,1756350641631,-400.0,0.00017809,2]
[381792380,1756350641640,-400.0,0.00017809,2]
[381792382,1756350641649,-400.0,0.00017809,2]
[381792384,1756350641659,-400.0,0.00017809,2]
[381792386,1756350641668,-400.0,0.00017809,2]
[381792388,1756350641677,-400.0,0.00017809,2]
[381792390,1756350641687,-400.0,0.00017809,2]
[381792392,1756350641695,-400.0,0.00017809,2]
[381792394,1756350641704,-400.0,0.00017809,2]
[381792396,1756350641714,-400.0,0.00017809,2]
[381792398,1756350641723,-400.0,0.00017809,2]
[381792400,1756350641732,-400.0,0.00017809,2]
[381792402,1756350641741,-400.0,0.00017809,2]
[381792404,1756350641750,-400.0,0.00017809,2]
[381792406,1756350641759,-400.0,0.00017809,2]
[381792408,1756350641768,-400.0,0.00017809,2]
[381792410,1756350641777,-400.0,0.00017809,2]
[381792412,1756350641786,-400.0,0.00017809,2]
[381792414,1756350641795,-400.0,0.00017809,2]
[381792416,1756350641804,-400.0,0.00017809,2]
[381792418,1756350641814,-1587.02,0.00017809,2]
[381792420,1756350641823,-150.0,0.0001781,2]
[381792421,1756350641833,-150.0,0.0001781,2]
[381792423,1756350641842,-150.138,0.0001781,2]
[381792425,1756350641851,-150.146,0.0001781,2]
[381792427,1756350641860,-150.0,0.0001781,2]
[381792429,1756350641870,-150.0,0.0001781,2]
[381792431,1756350641879,-151.0,0.0001781,2]
[381792433,1756350641889,-150.134,0.0001781,2]
[381792435,1756350641898,-1256.0,0.0001781,2]
[381792437,1756350641908,-1458.024,0.0001781,2]
[381792439,1756350641917,-851.55973,0.0001782,2]
[381792442,1756350641927,-200.0,0.00017856,2]
[381792443,1756350641936,-1000.0,0.0001787,3]
[381792445,1756350641945,-250.0,0.0001787,2]
[381792447,1756350641955,-333.68949775,0.00017899,2]
[381792449,1756350641964,-435.32474918,0.00017899,2]
[381792451,1756350641973,-1879.60945436,0.000179,2]
[381792453,1756350641982,-163.19001047,0.000179,2]
[381792455,1756350641992,-5000.0,0.000179,6]
[381792457,1756350642001,-2218.40122155,0.000179,2]
[381792459,1756350642010,-851.55974,0.0001793,2]
[381792461,1756350642019,-213.0,0.00017936,2]
[381792463,1756350642029,-799.74,0.00017946,2]
[381792466,1756350642038,-799.74,0.00017946,2]
[381792468,1756350642048,-506.21940288,0.00017973,2]
[381792470,1756350642058,-500.0,0.00017973,2]
[381792472,1756350642067,-501.75510406,0.00017973,2]
[381792474,1756350642079,-510.73113445,0.00017973,2]
[381792476,1756350642088,-502.23622017,0.00017973,2]
[381792478,1756350642097,-500.71737005,0.00017973,2]
[381792480,1756350642106,-490.3123533,0.00017973,2]
[381792482,1756350642115,-501.06167915,0.00017973,2]
[381792484,1756350642126,-500.83667794,0.00017973,2]
[381792486,1756350642136,-500.0,0.00017973,2]
[381792488,1756350642145,-500.4564971,0.00017973,2]
[381792490,1756350642155,-290.49,0.00017979,2]
[381792492,1756350642164,-502.76403066,0.00017982,2]
[381792494,1756350642173,-9121.1265028,0.00017986,2]
[381792496,1756350642182,-400.0,0.00017988,2]
[381792498,1756350642191,-400.0,0.00017988,2]
[381792500,1756350642200,-400.0,0.00017988,2]
[381792502,1756350642211,-400.0,0.00017988,2]
[381792504,1756350642220,-400.0,0.00017988,2]
[381792506,1756350642229,-400.0,0.00017988,2]
[381792508,1756350642238,-522.19,0.00017988,2]
[381792510,1756350642247,-400.0,0.00017988,2]
[381792512,1756350642256,-400.0,0.00017988,2]
[381792514,1756350642265,-400.0,0.00017988,2]
[381792516,1756350642275,-400.0,0.00017988,2]
[381792517,1756350642285,-400.0,0.00017988,2]
[381792519,1756350642297,-692.13,0.00017988,2]
[381792521,1756350642307,-451.84,0.00017988,2]
[381792524,1756350642317,-400.0,0.00017988,2]
[381792526,1756350642326,-400.0,0.00017988,2]
[381792528,1756350642335,-400.0,0.00017988,2]
[381792530,1756350642345,-1769.75,0.00017988,2]
[381792532,1756350642354,-463.2,0.00017988,2]
[381792534,1756350642363,-400.0,0.00017988,2]
[381792535,1756350642373,-400.0,0.00017988,2]
[381792537,1756350642382,-400.0,0.00017988,2]
[381792539,1756350642392,-400.0,0.00017988,2]
[381792541,1756350642401,-7349.064814,0.00017988,2]
[381792543,1756350642410,-5577.0031252,0.00017988,2]
[381792545,1756350642419,-400.0,0.00017988,2]
[381792547,1756350642428,-400.0,0.00017988,2]
[381792549,1756350642437,-400.0,0.00017988,2]
[381792551,1756350642446,-400.0,0.00017988,2]
[381792553,1756350642455,-400.0,0.00017988,2]
[381792555,1756350642464,-400.0,0.00017988,2]
[381792557,1756350642474,-150.724341,0.00017988,2]
[381792559,1756350642484,-514.97737109,0.00017988,2]
[381792561,1756350642493,-29369.90232383,0.00017989,2]
[381792563,1756350642502,-560.83634188,0.0001799,2]
[381792565,1756350642512,-400.0,0.00017997,2]
[381792567,1756350642522,-400.0,0.00017997,2]
[381792569,1756350642531,-400.0,0.00017997,2]
[381792571,1756350642540,-400.0,0.00017997,2]
[381792573,1756350642549,-400.0,0.00017997,2]
[381792575,1756350642558,-400.0,0.00017997,2]
[381792577,1756350642571,-400.0,0.00017997,2]
[381792580,1756350642581,-400.0,0.00017997,2]
[381792581,1756350642590,-213.99,0.00017997,2]
[381792583,1756350642599,-400.55799819,0.00017998,2]
[381792585,1756350642608,-400.0,0.00017998,2]
[381792587,1756350642617,-400.0,0.00017998,2]
[381792589,1756350642627,-311.40112071,0.00017998,2]
[381792591,1756350642636,-400.0,0.00017998,2]
[381792593,1756350642645,-400.0,0.00017998,2]
[381792595,1756350642655,-400.0,0.00017998,2]
[381792597,1756350642664,-400.0,0.00017998,2]
[381792599,1756350642673,-400.0,0.00017998,2]
[381792601,1756350642682,-259.02096467,0.00017998,2]
[381792604,1756350642696,-140.97903533,0.00017998,2]
[381792606,1756350642706,-400.0,0.00017998,2]
[381792608,1756350642715,-400.0,0.00017998,2]
[381792610,1756350642724,-400.0,0.00017998,2]
[381792612,1756350642734,-400.0,0.00017998,2]
[381792614,1756350642744,-442.69404724,0.00017998,2]
[381792616,1756350642753,-400.0,0.00017998,2]
[381792618,1756350642763,-400.0,0.00017998,2]
[381792620,1756350642771,-381.58030992,0.00017998,2]
[381792622,1756350642780,-214.90962758,0.00017998,2]
[381792624,1756350642790,-400.0,0.00017998,2]
[381792626,1756350642799,-400.0,0.00017998,2]
[381792628,1756350642808,-500.0,0.00017998,2]
[381792631,1756350642818,-400.0,0.00017998,2]
[381792633,1756350642827,-400.0,0.00017998,2]
[381792635,1756350642836,-400.0,0.00017998,2]
[381792637,1756350642845,-400.0,0.00017998,2]
[381792639,1756350642855,-349.45905451,0.00017998,2]
[381792641,1756350642865,-400.0,0.00017998,2]
[381792643,1756350642874,-425.99563197,0.00017998,2]
[381792645,1756350642883,-400.0,0.00017998,2]
[381792647,1756350642892,-301.31897416,0.00017998,2]
[381792649,1756350642902,-400.0,0.00017998,2]
[381792651,1756350642911,-329.04652493,0.00017998,2]
[381792653,1756350642920,-400.0,0.00017998,2]
[381792655,1756350642930,-321.50331801,0.00017998,2]
[381792657,1756350642939,-400.0,0.00017998,2]
[381792659,1756350642949,-400.0,0.00017998,2]
[381792661,1756350642958,-400.0,0.00017998,2]
[381792663,1756350642968,-400.0,0.00017998,2]
[381792665,1756350642977,-400.0,0.00017998,2]
[381792667,1756350642987,-668.61302426,0.00017999,2]
[381792669,1756350642996,-666.0,0.00017999,2]
[381792671,1756350643006,-666.0,0.00017999,2]
[381792673,1756350643016,-666.0,0.00017999,2]
[381792675,1756350643025,-300.0,0.00017999,2]
[381792677,1756350643035,-400.0,0.00017999,2]
[381792679,1756350643044,-300.0,0.00017999,2]
[381792681,1756350643053,-524.1,0.00017999,2]
[381792683,1756350643064,-400.0,0.00017999,2]
[381792685,1756350643073,-402.09613778,0.00017999,2]
[381792687,1756350643082,-400.0,0.00017999,2]
[381792689,1756350643091,-400.0,0.00017999,2]
[381792691,1756350643100,-400.0,0.00017999,2]
[381792693,1756350643109,-400.0,0.00017999,2]
[381792695,1756350643118,-639.45437094,0.00017999,2]
[381792697,1756350643127,-400.0,0.00017999,2]
[381792699,1756350643136,-400.0,0.00017999,2]
[381792701,1756350643146,-402.05617477,0.00017999,2]
[381792703,1756350643156,-400.0,0.00017999,2]
[381792705,1756350643165,-400.0,0.00017999,2]
[381792707,1756350643174,-400.0,0.00017999,2]
[381792709,1756350643183,-400.0,0.00017999,2]
[381792711,1756350643193,-400.0,0.00017999,2]
[381792713,1756350643202,-400.0,0.00017999,2]
[381792715,1756350643211,-400.0,0.00017999,2]
[381792717,1756350643220,-400.0,0.00017999,2]
[381792719,1756350643231,-400.0,0.00017999,2]
[381792742,1756350643434,-366.22369708,0.00017999,2]
[381792744,1756350643444,-500.0,0.00017999,2]
[381792746,1756350643454,-500.0,0.00017999,2]
[381792748,1756350643463,-400.0,0.00017999,2]
[381792750,1756350643473,-400.0,0.00017999,2]
[381792752,1756350643482,-400.0,0.00017999,2]
[381792754,1756350643491,-400.0,0.00017999,2]
[381792756,1756350643501,-400.0,0.00017999,2]
[381792758,1756350643510,-300.0,0.00017999,2]
[381792760,1756350643519,-400.0,0.00017999,2]
[381792762,1756350643529,-400.0,0.00017999,2]
[381792764,1756350643540,-400.0,0.00017999,2]
[381792766,1756350643551,-400.0,0.00017999,2]
[381792768,1756350643561,-400.0,0.00017999,2]
[381792770,1756350643570,-400.0,0.00017999,2]
[381792772,1756350643580,-400.0,0.00017999,2]
[381792774,1756350643590,-400.0,0.00017999,2]
[381792777,1756350643600,-400.0,0.00017999,2]
[381792778,1756350643609,-400.0,0.00017999,2]
[381792781,1756350643620,-400.0,0.00017999,2]
[381792783,1756350643630,-466.9,0.00017999,2]
[381792785,1756350643639,-400.0,0.00017999,2]
[381792787,1756350643650,-400.0,0.00017999,2]
[381792789,1756350643659,-149.95741152,0.00017999,2]
[381792798,1756350643922,-250.04258848,0.00017999,2]
[381792800,1756350643931,-538.58,0.00017999,2]
[381792802,1756350643941,-400.0,0.00017999,2]
[381792804,1756350643950,-400.0,0.00017999,2]
[381792806,1756350643959,-400.0,0.00017999,2]
[381792808,1756350643969,-400.0,0.00017999,2]
[381792810,1756350643978,-400.0,0.00017999,2]
[381792812,1756350643988,-1984.81,0.00017999,2]
[381792814,1756350643998,-400.0,0.00017999,2]
[381792816,1756350644007,-400.0,0.00017999,2]
[381792818,1756350644017,-400.0,0.00017999,2]
[381792820,1756350644026,-400.0,0.00017999,2]
[381792822,1756350644035,-400.0,0.00017999,2]
[381792824,1756350644045,-400.0,0.00017999,2]
[381792826,1756350644054,-515.68,0.00017999,2]
[381792829,1756350644063,-244.22,0.00017999,2]
[381792831,1756350644074,-444.74,0.00017999,2]
[381792832,1756350644083,-400.0,0.00017999,2]
[381792834,1756350644092,-400.0,0.00017999,2]
[381792836,1756350644101,-400.0,0.00017999,2]
[381792838,1756350644110,-400.0,0.00017999,2]
[381792840,1756350644119,-400.0,0.00017999,2]
[381792842,1756350644129,-542.95,0.00017999,2]
[381792844,1756350644138,-400.0,0.00017999,2]
[381792846,1756350644147,-400.0,0.00017999,2]
[381792848,1756350644156,-400.0,0.00017999,2]
[381792850,1756350644166,-400.0,0.00017999,2]
[381792852,1756350644176,-400.0,0.00017999,2]
[381792854,1756350644186,-400.0,0.00017999,2]
[381792856,1756350644195,-400.0,0.00017999,2]
[381792858,1756350644205,-400.0,0.00017999,2]
[381792860,1756350644214,-500.0,0.00017999,2]
[381792862,1756350644223,-500.0,0.00017999,2]
[381792864,1756350644233,-500.0,0.00017999,2]
[381792866,1756350644243,-500.0,0.00017999,2]
[381792868,1756350644252,-439.42119321,0.00017999,2]
[381792870,1756350644261,-400.0,0.00017999,2]
[381792872,1756350644271,-400.0,0.00017999,2]
[381792874,1756350644282,-400.0,0.00017999,2]
[381792876,1756350644293,-400.0,0.00017999,2]
[381792878,1756350644304,-400.0,0.00017999,2]
[381792880,1756350644313,-400.0,0.00017999,2]
[381792882,1756350644323,-400.0,0.00017999,2]
[381792884,1756350644332,-400.0,0.00017999,2]
[381792886,1756350644342,-400.0,0.00017999,2]
[381792888,1756350644351,-195.10908335,0.00017999,2]
[381792890,1756350644361,-541.76990344,0.00017999,2]
[381792892,1756350644371,-400.0,0.00017999,2]
[381792894,1756350644381,-307.3211022,0.00017999,2]
[381792896,1756350644390,-539.44887983,0.00017999,2]
[381792898,1756350644399,-400.0,0.00017999,2]
[381792900,1756350644408,-417.21,0.00017999,2]
[381792902,1756350644418,-400.0,0.00017999,2]
[381792904,1756350644427,-493.26236696,0.00017999,2]
[381792906,1756350644436,-392.54,0.00017999,2]
[381792908,1756350644446,-400.0,0.00017999,2]
[381792910,1756350644455,-400.0,0.00017999,2]
[381792912,1756350644466,-400.0,0.00017999,2]
[381792914,1756350644475,-206.94,0.00017999,2]
[381792916,1756350644484,-400.0,0.00017999,2]
[381792918,1756350644494,-456.78772669,0.00017999,2]
[381792920,1756350644503,-400.0,0.00017999,2]
[381792922,1756350644512,-400.0,0.00017999,2]
[381792924,1756350644522,-400.0,0.00017999,2]
[381792926,1756350644531,-400.0,0.00017999,2]
[381792928,1756350644540,-400.0,0.00017999,2]
[381792930,1756350644550,-400.0,0.00017999,2]
[381792932,1756350644562,-400.0,0.00017999,2]